bitfinex-derivatives/quotes_BNBF0:USTF0_20250326
["timestamp","ask_amount","ask_price","bid_price","bid_amount"]
[1742959462331,1.177,629.83,629.26,1.18608911]
[1742959464034,1.177,629.83,629.28,1.18608911]
[1742959466239,1.177,629.83,629.32,1.18608911]
[1742959468540,1.177,629.83,629.33,1.18608911]
[1742959473045,1.177,629.83,629.26,1.18608911]
[1742959474639,1.177,629.83,629.25,1.18608911]
[1742959476942,1.177,629.83,629.26,1.18608911]
[1742959485152,1.177,629.83,629.31,1.18608911]
[1742959487654,1.177,629.83,629.36,1.18608911]
[1742959490157,1.177,629.83,629.21,1.18608911]
[1742959492356,1.177,629.83,629.12,1.18608911]
[1742959494057,1.177,629.83,629.06,1.18608911]
[1742959496060,1.177,629.83,608.46,14.1814822]
[1742959496061,1.177,629.83,629.04,1.18608911]
[1742959497961,1.177,629.83,629.06,1.18608911]
[1742959500355,1.177,629.83,628.98,0.27642302]
[1742959500356,1.177,629.83,629.09,1.18608911]
[1742959501255,1.177,629.83,629.1,0.27108843]
[1742959502061,1.177,629.83,629.23,1.18608911]
[1742959502663,1.45341095,629.83,629.23,1.18608911]
[1742959504765,1.45341095,629.83,629.33,1.18608911]
[1742959507167,1.45341095,629.83,629.34,1.18608911]
[1742959507364,1.177,629.83,629.34,1.18608911]
[1742959508665,1.45339887,629.83,629.34,1.18608911]
[1742959509464,1.45339887,629.83,629.36,1.18608911]
[1742959510465,1.177,629.83,629.36,1.18608911]
[1742959510860,1.45339668,629.83,629.36,1.18608911]
[1742959512668,1.45339668,629.83,629.39,1.18608911]
[1742959513470,1.177,629.83,629.39,1.18608911]
[1742959514765,1.45339338,629.83,629.39,1.18608911]
[1742959516372,1.177,629.83,629.39,1.18608911]
[1742959516568,1.177,629.83,629.38,1.18608911]
[1742959517772,1.45339448,629.83,629.38,1.18608911]
[1742959519268,1.45339448,629.83,629.35,1.18608911]
[1742959519473,1.177,629.83,629.35,1.18608911]
[1742959519775,1.45339777,629.83,629.35,1.18608911]
[1742959522174,1.45339777,629.83,629.36,1.18608911]
[1742959522380,1.177,629.83,629.36,1.18608911]
[1742959522679,1.45339668,629.83,629.36,1.18608911]
[1742959523379,1.177,629.83,629.36,1.18608911]
[1742959524479,1.177,629.83,629.37,1.18608911]
[1742959526085,1.177,629.83,629.01,1.18608911]
[1742959527981,1.177,629.83,629.0,1.46245615]
[1742959528483,1.177,629.83,629.0,1.18608911]
[1742959528688,1.177,629.83,629.0,1.46249676]
[1742959530992,1.177,629.83,629.0,0.27640765]
[1742959531491,1.177,629.83,628.99,1.18608911]
[1742959532692,1.177,629.83,629.0,0.27640875]
[1742959533288,1.177,629.83,629.01,0.2709427]
[1742959534592,1.177,629.83,628.99,0.2709427]
[1742959534795,1.177,629.83,629.0,0.54735255]
[1742959535092,1.177,629.83,629.01,0.2709427]
[1742959535295,1.177,629.83,629.22,1.18608911]
[1742959537395,1.177,629.83,628.82,1.18608911]
[1742959537396,1.177,629.83,629.14,1.18608911]
[1742959538695,1.177,629.83,629.15,0.27094009]
[1742959539396,1.177,629.83,629.14,1.18608911]
[1742959541996,1.177,629.83,629.25,1.18608911]
[1742959549704,1.177,629.83,629.26,1.18608911]
[1742959552908,1.177,629.83,629.27,1.18608911]
[1742959555107,1.177,629.83,629.04,1.18608911]
[1742959555108,1.177,629.83,629.28,1.18608911]
[1742959556907,1.177,629.83,629.38,1.18608911]
[1742959560911,1.177,629.83,629.4,1.18608911]
[1742959562714,1.177,629.83,621.84,5.69653877]
[1742959562715,1.45339229,629.83,629.26,1.18608911]
[1742959564516,1.177,629.83,629.26,1.18608911]
[1742959564816,1.177,629.83,629.24,1.18608911]
[1742959565813,1.45340985,629.83,629.24,1.18608911]
[1742959569116,1.45340985,629.83,629.23,1.18608911]
[1742959570013,1.177,629.83,629.23,1.18608911]
[1742959574022,1.177,629.83,629.3,1.18608911]
[1742959580837,1.177,629.83,629.36,1.18608911]
[1742959583139,1.177,629.83,629.3,1.18608911]
[1742959585543,1.177,629.83,629.31,1.18608911]
[1742959587736,1.177,629.83,629.3,1.18608911]
[1742959590544,1.177,629.83,629.31,1.18608911]
[1742959592847,1.177,629.83,629.33,1.18608911]
[1742959596742,1.177,629.83,629.32,1.18608911]
[1742959599149,1.177,629.83,629.31,1.18608911]
[1742959604563,1.177,629.83,629.36,1.18608911]
[1742959607662,1.177,629.83,629.38,1.18608911]
[1742959609966,1.177,629.83,629.43,1.18608911]
[1742959611967,1.177,629.83,629.42,1.18608911]
[1742959614675,1.177,629.83,629.33,1.18608911]
[1742959616271,1.177,629.83,629.26,1.18608911]
[1742959618775,1.177,629.83,629.01,1.18608911]
[1742959622178,1.177,629.83,608.45,23.6358037]
[1742959622179,1.177,629.83,629.0,1.18608911]
[1742959623975,1.177,629.83,628.98,0.27642961]
[1742959624375,1.177,629.83,628.97,1.18608911]
[1742959625884,1.177,629.83,628.98,0.2764329]
[1742959627483,1.177,629.83,628.97,1.18608911]
[1742959628484,1.177,629.83,628.99,1.18608911]
[1742959630187,1.177,629.83,629.04,1.18608911]
[1742959632393,1.177,629.83,629.11,1.18608911]
[1742959634492,1.177,629.83,629.13,1.18608911]
[1742959636410,1.177,629.83,629.14,0.27063273]
[1742959636900,1.177,629.83,629.13,0.27063273]
[1742959637095,1.177,629.83,629.12,1.18608911]
[1742959637299,1.177,629.83,629.13,0.27061992]
[1742959638301,1.177,629.83,629.12,1.18608911]
[1742959639502,1.177,629.83,629.26,1.18608911]
[1742959641905,1.177,629.83,629.24,1.18608911]
[1742959644509,1.177,629.83,629.3,1.18608911]
[1742959647113,1.177,629.83,629.23,1.18608911]
[1742959649414,1.177,629.83,629.24,1.18608911]
[1742959652314,1.177,629.83,629.28,1.18608911]
[1742959654814,1.177,629.83,629.27,1.18608911]
[1742959656516,1.177,629.83,629.33,1.18608911]
[1742959658415,1.177,629.83,629.14,1.18608911]
[1742959658416,1.177,629.83,629.35,1.18608911]
[1742959660317,1.177,629.83,629.0,0.98269046]
[1742959660318,1.177,629.83,629.38,1.18608911]
[1742959661622,1.177,629.83,629.25,1.18608911]
[1742959665621,1.177,629.83,629.26,1.18608911]
[1742959669419,1.177,629.83,629.24,1.18608911]
[1742959671923,1.177,629.83,629.3,1.18608911]
[1742959674024,1.177,629.83,629.27,1.18608911]
[1742959675731,1.177,629.83,629.31,1.18608911]
[1742959677625,1.177,629.83,629.32,1.18608911]
[1742959679530,1.177,629.83,629.41,1.18608911]
[1742959681933,1.177,629.83,629.43,1.18608911]
[1742959684832,1.177,629.83,629.18,1.18608911]
[1742959684833,1.177,629.83,629.37,1.18608911]
[1742959687041,1.177,629.83,629.36,1.18608911]
[1742959689438,1.177,629.83,629.33,1.18608911]
[1742959692240,1.177,629.83,629.32,1.18608911]
[1742959694032,1.177,629.83,629.11,1.18608911]
[1742959694033,1.177,629.83,629.33,1.18608911]
[1742959697046,1.177,629.83,629.0,0.98325131]
[1742959697047,1.177,629.83,629.3,1.18608911]
[1742959699149,1.177,629.83,629.06,1.18608911]
[1742959702352,1.177,629.83,629.08,1.18608911]
[1742959704357,1.177,629.83,629.07,1.18608911]
[1742959706957,1.177,629.83,629.08,0.27061947]
[1742959708262,1.177,629.83,629.07,1.18608911]
[1742959708463,1.177,629.83,629.22,1.18608911]
[1742959710662,1.177,629.83,629.15,1.18608911]
[1742959712363,1.177,629.83,629.17,1.18608911]
[1742959715363,1.177,629.83,629.15,1.18608911]
[1742959717363,1.177,629.83,629.16,1.18608911]
[1742959719266,1.177,629.83,629.15,1.18608911]
[1742959722467,1.177,629.83,629.28,1.18608911]
[1742959727467,1.177,629.83,629.29,0.27062855]
[1742959727663,1.177,629.83,629.0,0.98270022]
[1742959727664,1.177,629.83,629.36,1.18608911]
[1742959730473,1.177,629.83,629.38,1.18608911]
[1742959732775,1.177,629.83,629.36,1.18608911]
[1742959736477,1.177,629.83,629.35,1.18608911]
[1742959741286,1.177,629.83,629.3,1.18608911]
[1742959743488,1.177,629.83,629.31,1.18608911]
[1742959748488,1.177,629.83,629.32,1.18608911]
[1742959751186,1.177,629.83,629.0,0.98270022]
[1742959751187,1.177,629.83,629.37,1.18608911]
[1742959754683,1.177,629.83,629.32,1.18608911]
[1742959757089,1.177,629.83,629.33,1.18608911]
[1742959759590,1.177,629.83,629.31,1.18608911]
[1742959763495,1.177,629.83,629.35,1.18608911]
[1742959765997,1.177,629.83,629.31,1.18608911]
[1742959767889,1.177,629.83,629.33,1.18608911]
[1742959770595,1.177,629.83,629.32,1.18608911]
[1742959772999,1.177,629.83,629.31,1.18608911]
[1742959774708,1.177,629.83,629.35,1.18608911]
[1742959776797,1.177,629.83,629.21,1.18608911]
[1742959780205,1.177,629.83,629.22,1.18608911]
[1742959782311,1.177,629.83,629.18,1.18608911]
[1742959784410,1.177,629.83,629.17,1.18608911]
[1742959787618,1.177,629.83,629.23,1.18608911]
[1742959790112,1.177,629.83,629.24,1.18608911]
[1742959793021,1.177,629.83,629.29,1.18608911]
[1742959795525,1.177,629.83,629.3,1.18608911]
[1742959800333,1.177,629.83,629.32,1.18608911]
[1742959803129,1.177,629.83,629.33,1.18608911]
[1742959807235,1.177,629.83,629.01,0.2763868]
[1742959807236,1.177,629.83,629.32,1.18608911]
[1742959810340,1.177,629.83,629.3,1.18608911]
[1742959812039,1.177,629.83,629.31,1.18608911]
[1742959814641,1.177,629.83,629.14,1.18608911]
[1742959816743,1.177,629.83,628.41,1.42330694]
[1742959816744,1.177,629.83,629.15,1.18608911]
[1742959818449,1.177,629.83,629.16,1.18608911]
[1742959821846,1.177,629.83,629.17,0.27061147]
[1742959822944,1.177,629.83,629.33,1.18608911]
[1742959826046,1.177,629.83,629.3,1.18608911]
[1742959828252,1.177,629.83,629.31,1.18608911]
[1742959830751,1.177,629.83,629.29,1.18608911]
[1742959837959,1.177,629.83,629.4,1.18608911]
[1742959840967,1.177,629.83,629.37,1.18608911]
[1742959843467,1.177,629.83,629.36,1.18608911]
[1742959845568,1.177,629.83,629.35,1.18608911]
[1742959847074,1.177,629.83,629.36,1.18608911]
[1742959849776,1.177,629.83,629.38,1.18608911]
[1742959851476,1.177,629.83,628.98,0.27639009]
[1742959855584,1.177,629.83,628.94,1.18608911]
[1742959856582,1.177,629.83,628.96,1.18608911]
[1742959856981,1.45344937,629.83,628.96,1.18608911]
[1742959859681,1.45344937,629.83,628.89,0.27644937]
[1742959859682,1.45344937,629.83,628.97,1.18608911]
[1742959861485,1.45344937,629.83,628.89,0.27644937]
[1742959861686,1.177,629.83,628.8,1.18608911]
[1742959861889,0.27645267,629.82,628.86,0.27645267]
[1742959864587,0.31751071,629.9,628.8,1.18608911]
[1742959864784,1.134,629.82,628.8,1.18608911]
[1742959865486,1.591,629.82,628.8,1.18608911]
[1742959865989,0.27647243,629.81,628.81,0.27647243]
[1742959867589,1.591,629.82,628.79,1.18608911]
[1742959867990,1.591,629.82,628.8,0.27092384]
[1742959868992,0.27648232,629.81,628.81,0.27648232]
[1742959869191,0.27648232,629.81,628.83,1.18608911]
[1742959869986,0.27648232,629.81,628.84,0.27092755]
[1742959870587,1.591,629.82,628.84,0.27092755]
[1742959870789,1.591,629.82,628.85,0.27091377]
[1742959870986,1.591,629.82,628.84,0.27091377]
[1742959871785,0.27647793,629.81,628.96,1.18608911]
[1742959873790,1.591,629.82,628.95,1.18608911]
[1742959873991,0.27646365,629.8,628.95,1.18608911]
[1742959875695,0.27646365,629.8,628.92,1.18608911]
[1742959876690,1.591,629.82,628.92,1.18608911]
[1742959876893,0.27646804,629.79,628.92,1.18608911]
[1742959878799,0.27646804,629.79,628.86,1.18608911]
[1742959879695,1.591,629.82,628.86,1.18608911]
[1742959879899,0.27647463,629.78,628.86,1.18608911]
[1742959881196,0.27647463,629.78,628.87,1.18608911]
[1742959882603,1.591,629.82,628.87,1.18608911]
[1742959883001,1.591,629.82,621.62,9.4543215]
[1742959883002,1.591,629.82,628.89,1.18608911]
[1742959884098,0.27646475,629.81,628.89,1.18608911]
[1742959885497,0.27646475,629.81,628.82,0.27646475]
[1742959885703,1.591,629.82,628.76,1.18608911]
[1742959885901,0.27647902,629.8,628.82,0.27647902]
[1742959888607,0.27647902,629.8,628.8,1.18608911]
[1742959890106,0.31756617,629.79,628.8,1.18608911]
[1742959890308,0.31756617,629.79,628.81,1.18608911]
[1742959891701,0.31756617,629.79,628.79,1.18608911]
[1742959893007,0.27652406,629.78,628.79,1.18608911]
[1742959893209,0.31757625,629.77,628.79,1.18608911]
[1742959893907,0.31757625,629.77,628.63,0.27652406]
[1742959893908,0.31757625,629.77,628.64,1.18608911]
[1742959894911,0.27654494,629.76,628.64,1.18608911]
[1742959895213,0.31758634,629.75,628.64,1.18608911]
[1742959895807,0.831,629.74,628.63,0.27654494]
[1742959896410,0.457,629.73,628.63,0.27654494]
[1742959900717,0.457,629.73,628.58,1.18608911]
[1742959901016,0.27653834,629.72,628.63,0.27653834]
[1742959901209,0.27653834,629.72,628.64,0.27119273]
[1742959901812,0.27653834,629.72,628.64,1.45728184]
[1742959902016,0.27653834,629.72,628.64,1.18608911]
[1742959903217,0.27653834,629.72,628.65,0.27121904]
[1742959903612,0.457,629.73,628.65,0.27121904]
[1742959904015,0.27652736,629.72,628.65,0.27121904]
[1742959904711,0.27652736,629.72,628.65,1.45730815]
[1742959904913,0.27652736,629.72,628.65,1.18608911]
[1742959905117,0.27652736,629.72,628.66,0.27125872]
[1742959906513,0.27652736,629.72,628.77,1.18608911]
[1742959906715,0.457,629.73,628.78,0.27125872]
[1742959907016,0.27651417,629.71,628.78,0.27125872]
[1742959908612,0.27651417,629.71,628.83,1.18608911]
[1742959908812,0.27651417,629.71,628.84,0.27125872]
[1742959909619,0.831,629.74,628.84,0.27125872]
[1742959910915,0.73351747,629.73,628.83,1.18608911]
[1742959911113,0.73351747,629.73,628.9,1.18608911]
[1742959911316,0.73351747,629.73,628.91,0.27135196]
[1742959912616,0.457,629.73,628.91,0.27135196]
[1742959913116,0.27650539,629.72,628.91,0.27135196]
[1742959913722,0.27650539,629.72,628.93,1.18608911]
[1742959913922,0.27650539,629.72,628.94,0.27135196]
[1742959914118,0.27650539,629.72,628.93,1.18608911]
[1742959915624,0.457,629.73,628.93,1.18608911]
[1742959915829,0.457,629.73,628.65,1.18608911]
[1742959916923,0.27654384,629.72,628.65,1.18608911]
[1742959917419,0.31760651,629.71,628.65,1.18608911]
[1742959918821,0.31760651,629.71,628.63,1.18608911]
[1742959919828,0.27657131,629.7,628.63,1.18608911]
[1742959920827,0.3176166,629.69,628.63,1.18608911]
[1742959921525,1.0756166,629.69,628.63,1.18608911]
[1742959922026,1.0756166,629.69,628.64,1.18608911]
[1742959923029,0.27657461,629.68,628.64,1.18608911]
[1742959923329,0.31762669,629.67,628.64,1.18608911]
[1742959927028,0.31762669,629.67,628.66,1.18608911]
[1742959929031,0.31762669,629.67,628.75,1.18608911]
[1742959929733,0.457,629.66,628.75,1.18608911]
[1742959932537,0.77463173,629.66,628.75,1.18608911]
[1742959933631,0.77463173,629.66,628.66,1.18608911]
[1742959937043,0.27657571,629.65,628.66,1.18608911]
[1742959938749,0.27657571,629.65,628.67,1.18608911]
[1742959939648,0.77463173,629.66,628.67,1.18608911]
[1742959940449,1.08,629.65,628.68,0.27147086]
[1742959941147,0.27657571,629.64,628.68,0.27147086]
[1742959941449,0.27657571,629.64,628.69,1.18608911]
[1742959941645,0.27657571,629.64,628.7,0.27147086]
[1742959942350,0.27657571,629.64,628.69,1.18608911]
[1742959942550,0.27657571,629.64,628.7,0.27146998]
[1742959942752,1.08,629.65,628.7,0.27146998]
[1742959943245,1.08,629.65,628.76,1.18608911]
[1742959943847,0.27655483,629.64,628.76,1.18608911]
[1742959945648,1.08,629.65,628.79,1.18608911]
[1742959947055,0.27655153,629.64,628.79,1.18608911]
[1742959947256,0.27655153,629.64,628.81,1.18608911]
[1742959950553,0.27655153,629.64,628.84,1.18608911]
[1742959951752,1.08,629.65,628.84,1.18608911]
[1742959952660,0.31764182,629.64,628.89,1.18608911]
[1742959953160,0.59420764,629.64,628.89,1.18608911]
[1742959954064,0.59420764,629.64,628.5,0.27656582]
[1742959954065,0.59420764,629.64,628.94,1.18608911]
[1742959954656,0.31764182,629.64,628.94,1.18608911]
[1742959955864,0.27655373,629.63,628.91,1.18608911]
[1742959956060,0.31765191,629.62,628.91,1.18608911]
[1742959957256,0.688,629.61,628.91,1.18608911]
[1742959958961,0.27654274,629.6,628.91,1.18608911]
[1742959960364,0.27654274,629.6,628.53,0.27654274]
[1742959960365,0.27654274,629.6,628.8,1.18608911]
[1742959960767,0.688,629.61,628.8,1.18608911]
[1742959960968,0.27656142,629.59,628.8,1.18608911]
[1742959961968,0.457,629.58,628.8,1.18608911]
[1742959964569,0.457,629.58,628.81,1.18608911]
[1742959966673,0.457,629.58,628.82,1.18608911]
[1742959967976,0.27655922,629.57,628.82,1.18608911]
[1742959969876,0.457,629.58,628.82,1.18608911]
[1742959970177,0.457,629.58,628.79,1.18608911]
[1742959971178,0.27656252,629.57,628.79,1.18608911]
[1742959972677,0.457,629.58,628.68,1.18608911]
[1742959973981,0.27657461,629.57,628.68,1.18608911]
[1742959975175,0.27657461,629.57,628.66,1.18608911]
[1742959975681,0.457,629.58,628.66,1.18608911]
[1742959976974,0.27657681,629.57,628.66,1.18608911]
[1742959977377,0.27657681,629.57,628.61,1.18608911]
[1742959978681,0.457,629.58,628.61,1.18608911]
[1742959980084,0.27659,629.57,628.63,1.18608911]
[1742959981180,1.36659,629.57,628.63,1.18608911]
[1742959982583,1.36659,629.57,628.75,1.18608911]
[1742959984681,1.09,629.57,628.75,1.18608911]
[1742959984881,1.09,629.57,628.76,1.18608911]
[1742959986082,0.27659,629.56,628.76,1.18608911]
[1742959987084,0.27659,629.56,628.47,0.27659]
[1742959987085,0.27659,629.56,628.72,1.18608911]
[1742959989286,0.31768723,629.55,628.72,1.18608911]
[1742959989483,0.31768723,629.55,628.55,1.18608911]
[1742959991587,0.31768723,629.55,628.45,1.18608911]
[1742959991789,0.31768723,629.55,628.46,0.27157438]
[1742959992089,0.27663507,629.54,628.46,0.27157438]
[1742959992290,0.31769732,629.53,628.46,0.27157438]
[1742959992887,0.31769732,629.53,628.45,1.18608911]
[1742959993990,0.31769732,629.53,628.51,1.18608911]
[1742959994385,0.456,629.52,628.51,1.18608911]
[1742959994590,0.31770742,629.51,628.51,1.18608911]
[1742959994986,0.59437108,629.51,628.51,1.18608911]
[1742959995183,0.696,629.5,628.51,1.18608911]
[1742959995388,0.31771751,629.49,628.51,1.18608911]
[1742959996687,0.31771751,629.49,628.3,0.27666476]
[1742959999800,0.31771751,629.49,628.24,0.31834967]
[1742960000197,0.27668126,629.48,628.3,0.27668126]
[1742960000495,0.31772761,629.47,628.3,0.27668126]
[1742960002798,0.31772761,629.47,628.24,0.31834967]
[1742960002992,0.31772761,629.47,628.25,0.27159788]
[1742960003997,0.27668126,629.46,628.26,0.27668126]
[1742960004193,0.27668126,629.46,628.27,0.27159788]
[1742960004395,0.27668126,629.46,628.29,1.18608911]
[1742960004603,0.27668126,629.46,628.3,0.27159668]
[1742960005699,0.31772761,629.47,628.3,0.27159668]
[1742960005895,0.27667906,629.45,628.3,0.27159668]
[1742960006100,0.27667906,629.45,628.29,1.18608911]
[1742960006101,0.27667906,629.45,628.31,0.27159764]
[1742960006304,0.27667906,629.45,628.32,0.27159764]
[1742960006505,0.27667906,629.45,628.29,0.27159764]
[1742960006705,0.27667906,629.45,628.3,0.27159764]
[1742960006899,0.27667906,629.45,628.29,0.27159764]
[1742960007103,0.27667906,629.45,628.3,0.27159764]
[1742960007299,0.27667906,629.45,628.31,0.27159764]
[1742960007505,0.27667906,629.45,628.29,0.27159764]
[1742960007702,0.27667906,629.45,628.3,0.27159811]
[1742960007907,0.27667906,629.45,628.31,0.27159811]
[1742960008108,0.27667906,629.45,628.29,0.27159811]
[1742960008412,0.27667906,629.45,628.3,0.27159811]
[1742960008611,0.27667906,629.45,628.29,0.27159811]
[1742960008805,0.31772761,629.47,628.3,0.27159811]
[1742960009009,0.31772761,629.47,628.3,1.18608911]
[1742960009309,0.27668016,629.44,628.31,0.27159811]
[1742960010810,0.27668016,629.44,628.35,1.18608911]
[1742960011111,0.27668016,629.44,628.36,0.27159811]
[1742960011817,0.31772761,629.47,628.36,0.27159811]
[1742960012206,0.27667246,629.43,628.36,0.27159811]
[1742960012409,0.27667246,629.43,628.37,0.27159682]
[1742960012609,0.27667246,629.43,628.35,1.18608911]
[1742960012610,0.27667246,629.43,628.36,0.27159682]
[1742960012811,0.27667246,629.43,628.37,0.27159682]
[1742960013014,0.27667246,629.43,628.38,0.27159682]
[1742960013312,0.27667246,629.43,628.39,0.27159682]
[1742960013909,0.27667246,629.43,628.38,1.18608911]
[1742960014108,0.27667246,629.43,628.39,0.27160026]
[1742960014611,0.456,629.46,628.39,0.27160026]
[1742960014910,0.699,629.42,628.39,0.27160026]
[1742960015510,0.699,629.42,628.51,1.18608911]
[1742960015712,0.699,629.42,628.52,0.27160026]
[1742960016106,0.27666036,629.41,628.52,0.27160026]
[1742960017607,0.699,629.42,628.52,0.27160026]
[1742960018009,0.27666036,629.4,628.52,0.27160026]
[1742960019608,0.27666036,629.4,628.56,1.18608911]
[1742960019812,0.27666036,629.4,628.57,0.27160026]
[1742960020713,0.699,629.42,628.56,1.18608911]
[1742960021816,0.699,629.42,628.39,1.18608911]
[1742960022115,0.27665486,629.41,628.39,1.18608911]
[1742960023718,0.699,629.42,628.39,1.18608911]
[1742960024113,0.27667356,629.4,628.43,1.18608911]
[1742960026814,0.699,629.42,628.45,1.18608911]
[1742960027211,0.27666916,629.39,628.45,1.18608911]
[1742960029611,0.27666916,629.39,628.47,1.18608911]
[1742960029811,0.699,629.42,628.47,1.18608911]
[1742960030116,0.27666696,629.38,628.47,1.18608911]
[1742960031016,0.27666696,629.38,628.48,0.27158497]
[1742960031514,0.27666696,629.38,628.47,1.18608911]
[1742960031816,0.27666696,629.38,628.48,0.27158497]
[1742960032421,0.27666696,629.38,628.48,1.45767408]
[1742960032721,0.699,629.42,628.48,1.18608911]
[1742960033117,0.27666366,629.37,628.48,1.18608911]
[1742960035221,0.27666366,629.37,628.62,1.18608911]
[1742960035824,0.699,629.42,628.62,1.18608911]
[1742960036924,0.73264826,629.41,628.62,1.18608911]
[1742960037723,0.73264826,629.41,628.64,1.18608911]
[1742960038824,0.456,629.41,628.64,1.18608911]
[1742960040027,0.27663727,629.4,628.64,1.18608911]
[1742960041626,0.456,629.41,628.64,1.18608911]
[1742960042125,0.27663837,629.39,628.64,1.18608911]
[1742960042923,0.27663837,629.39,628.56,1.18608911]
[1742960043825,1.049,629.38,628.56,1.18608911]
[1742960045130,0.27665046,629.37,628.56,1.18608911]
[1742960045426,0.27665046,629.37,628.57,1.18608911]
[1742960047726,1.049,629.38,628.57,1.18608911]
[1742960048331,0.27664936,629.37,628.57,1.18608911]
[1742960048930,0.27664936,629.37,628.58,0.27142923]
[1742960049324,0.27664936,629.37,628.58,1.18608911]
[1742960049525,0.27664936,629.37,628.59,0.27138641]
[1742960050327,0.27664936,629.37,628.6,0.27138501]
[1742960050527,0.27664936,629.37,628.59,0.27138501]
[1742960050731,1.049,629.38,628.58,1.18608911]
[1742960050927,1.049,629.38,628.59,0.27138324]
[1742960051832,1.049,629.38,628.58,1.18608911]
[1742960052032,1.049,629.38,628.72,1.18608911]
[1742960053636,1.049,629.38,628.37,0.27664826]
[1742960053637,1.049,629.38,628.46,1.18608911]
[1742960058840,1.049,629.38,628.44,1.46273078]
[1742960060537,1.049,629.38,628.44,0.27664167]
[1742960061637,1.049,629.38,628.45,0.27122585]
[1742960063142,1.049,629.38,628.54,1.18608911]
[1742960064941,1.049,629.38,628.56,1.18608911]
[1742960066842,1.049,629.38,628.54,1.18608911]
[1742960067543,0.456,629.37,628.54,1.18608911]
[1742960069340,0.456,629.37,628.55,0.27121525]
[1742960069539,0.456,629.37,628.54,1.18608911]
[1742960070040,0.456,629.37,628.47,0.27662517]
[1742960070041,0.456,629.37,628.55,1.18608911]
[1742960071542,0.685,629.36,628.55,1.18608911]
[1742960073947,0.685,629.36,628.54,1.18608911]
[1742960078245,0.685,629.36,628.53,1.18608911]
[1742960079347,0.685,629.36,628.54,0.27118217]
[1742960083152,0.685,629.36,628.7,1.18608911]
[1742960083354,0.685,629.36,628.71,0.27118217]
[1742960083751,0.685,629.36,628.7,1.18608911]
[1742960084446,0.685,629.36,628.71,0.27115017]
[1742960085553,0.685,629.36,628.73,1.18608911]
[1742960086749,0.685,629.36,628.74,0.27115779]
[1742960086950,0.685,629.36,628.73,1.18608911]
[1742960087150,0.685,629.36,628.74,0.27115822]
[1742960088452,0.685,629.36,628.79,1.18608911]
[1742960090852,0.685,629.36,628.83,1.18608911]
[1742960091756,0.456,629.37,628.83,1.18608911]
[1742960094955,0.855,629.36,628.83,1.18608911]
[1742960095259,0.855,629.36,628.84,1.18608911]
[1742960097061,0.855,629.36,628.91,1.18608911]
[1742960098967,0.456,629.35,628.91,1.18608911]
[1742960102664,0.456,629.35,628.95,1.18608911]
[1742960105266,0.456,629.35,628.98,1.18608911]
[1742960108063,0.456,629.35,628.88,1.18608911]
[1742960110768,0.456,629.35,628.89,1.18608911]
[1742960114470,0.456,629.35,628.88,1.18608911]
[1742960115973,0.456,629.35,628.91,1.18608911]
[1742960117975,0.456,629.35,628.86,1.18608911]
[1742960120575,0.456,629.35,628.56,0.27657241]
[1742960120576,0.456,629.35,628.85,1.18608911]
[1742960121073,0.31772761,629.47,628.85,1.18608911]
[1742960122679,0.972,629.46,628.86,1.18608911]
[1742960124381,0.456,629.45,628.86,1.18608911]
[1742960124581,0.456,629.45,628.87,1.18608911]
[1742960126978,0.456,629.45,628.91,1.18608911]
[1742960129788,0.456,629.45,628.57,0.98307731]
[1742960129789,0.456,629.45,629.0,1.18608911]
[1742960134990,0.456,629.45,628.98,1.18608911]
[1742960138692,1.436,629.45,628.98,1.18608911]
[1742960140193,1.436,629.45,628.92,1.18608911]
[1742960142395,1.436,629.45,628.74,1.18608911]
[1742960149901,1.436,629.45,628.75,1.18608911]
[1742960152402,1.436,629.45,628.89,1.18608911]
[1742960154710,1.436,629.45,628.93,1.18608911]
[1742960158220,1.436,629.45,628.92,1.18608911]
[1742960164623,1.436,629.45,628.91,1.18608911]
[1742960168528,1.436,629.45,628.96,1.18608911]
[1742960171338,1.436,629.45,628.86,1.18608911]
[1742960178234,1.436,629.45,628.88,1.18608911]
[1742960181029,0.2765812,629.44,628.88,1.18608911]
[1742960182937,0.31772761,629.47,628.88,1.18608911]